bitfinex/quotes_ETHUSD_20260209
["timestamp","ask_amount","ask_price","bid_price","bid_amount"]
[1770639177017,1.22597096,2039.2,2038.1,0.96757504]
[1770639177223,2.15515446,2039.2,2038.1,0.96757504]
[1770639178409,2.15515446,2039.2,2037.9,4.90799171]
[1770639178410,2.15515446,2039.2,2038.2,0.96757504]
[1770639178841,4.90350657,2039.4,2038.4,4.91421104]
[1770639179038,4.90350657,2039.4,2038.4,0.96757504]
[1770639179221,0.9291835,2039.3,2038.0,0.96757504]
[1770639179424,0.9291835,2039.3,2038.1,3.325496]
[1770639180130,0.9291835,2039.3,2038.0,0.96757504]
[1770639180332,0.9291835,2039.3,2038.1,4.885712]
[1770639180730,0.9291835,2039.1,2038.3,0.001]
[1770639181057,1.22597096,2039.2,2038.3,0.001]
[1770639181058,0.9311835,2039.0,2038.3,0.001]
[1770639181411,0.002,2039.0,2038.3,0.001]
[1770639183220,0.002,2039.0,2038.3,0.96857504]
[1770639183421,0.002,2039.0,2038.3,0.001]
[1770639183642,0.9311835,2039.0,2038.3,0.001]
[1770639185246,1.22615135,2038.9,2038.3,0.001]
[1770639185723,0.9291835,2038.8,2038.3,0.001]
[1770639186452,1.22615135,2038.9,2038.3,0.001]
[1770639187234,4.90660542,2039.0,2038.3,0.001]
[1770639187551,0.9291835,2038.9,2038.3,0.001]
[1770639187723,0.9291835,2038.7,2038.0,0.001]
[1770639188133,3.428,2038.8,2037.7,0.001]
[1770639188134,0.9291835,2038.5,2037.7,0.001]
[1770639188424,0.9291835,2038.3,2037.7,0.001]
[1770639189451,1.22657246,2038.2,2037.7,0.001]
[1770639190350,4.90556199,2038.6,2037.7,0.001]
[1770639190351,0.9291835,2038.6,2037.7,0.001]
[1770639191454,0.9291835,2038.4,2037.7,0.001]
[1770639193359,4.90556781,2038.6,2037.7,0.001]
[1770639193524,5.83475131,2038.6,2037.7,0.001]
[1770639193722,2.15551529,2038.6,2037.7,0.001]
[1770639194067,4.90489637,2038.8,2037.7,0.001]
[1770639194232,1.22621149,2038.8,2037.7,0.96857504]
[1770639194430,1.22813892,2039.0,2037.9,0.96757504]
[1770639194665,1.22813892,2039.0,2038.0,0.96757504]
[1770639194842,0.002,2039.0,2038.0,0.96757504]
[1770639195158,0.002,2038.8,2038.1,13.942036]
[1770639195358,0.002,2038.8,2038.2,0.90847413]
[1770639195952,0.002,2038.8,2038.0,4.4411606]
[1770639196151,0.002,2038.8,2038.0,0.90847413]
[1770639196851,0.002,2038.8,2038.1,0.90847413]
[1770639198535,0.002,2038.8,2038.2,0.95148011]
[1770639198865,0.002,2038.8,2038.1,0.95148011]
[1770639199772,0.002,2038.8,2038.2,0.95148011]
[1770639202169,0.002,2038.8,2038.2,1.02500231]
[1770639202378,0.002,2038.8,2038.3,0.95148011]
[1770639202564,0.002,2039.0,2038.3,0.95148011]
[1770639202767,0.99845261,2039.5,2038.4,1.05388011]
[1770639203659,0.99845261,2039.3,2038.4,0.1024]
[1770639203979,5.90066389,2039.9,2038.4,0.1024]
[1770639204185,0.99845261,2039.7,2038.5,0.95148011]
[1770639205687,0.99845261,2039.7,2038.5,1.02500231]
[1770639206060,2.22413214,2039.7,2038.5,1.02500231]
[1770639206385,2.22388273,2040.1,2038.8,9.036457]
[1770639206574,0.99845261,2040.0,2038.8,4.270961]
[1770639206779,0.99845261,2040.0,2038.9,7.284177]
[1770639206974,0.99845261,2040.0,2038.9,3.889961]
[1770639207170,0.99845261,2040.0,2038.8,0.95148011]
[1770639207364,0.99845261,2040.0,2038.9,0.01009459]
[1770639207789,0.99845261,2040.0,2038.8,22.666721]
[1770639207986,0.99845261,2040.0,2038.9,0.0100931]
[1770639208192,0.99845261,2039.9,2038.9,0.0100931]
[1770639208763,0.002,2039.1,2038.9,0.0100931]
[1770639208965,0.99845261,2039.9,2038.9,0.0100931]
[1770639209272,0.99845261,2039.9,2038.5,0.0735222]
[1770639209273,1.00045261,2039.3,2039.0,0.01009111]
[1770639209594,1.00045261,2039.3,2038.5,0.01009111]
[1770639210093,0.99845261,2039.2,2038.5,0.01009111]
[1770639210892,0.99845261,2039.2,2038.4,3.429]
[1770639211067,0.99845261,2039.2,2038.5,0.0100911]
[1770639212290,2.2244837,2039.1,2038.5,0.0100911]
[1770639212671,0.99845261,2039.1,2038.5,0.0100911]
[1770639214164,1.22795887,2039.3,2038.5,0.0100911]
[1770639214584,1.00045261,2039.3,2038.5,0.0100911]
[1770639214989,2.22637088,2039.3,2038.5,0.0100911]
[1770639215292,1.00045261,2039.3,2038.5,0.0100911]
[1770639216291,0.002,2039.3,2038.5,0.0836133]
[1770639217766,0.002,2039.3,2038.5,0.0100911]
[1770639217974,1.00045261,2039.3,2038.5,0.0100911]
[1770639218378,0.99845261,2039.2,2038.5,0.0100911]
[1770639218570,0.99845261,2039.2,2038.4,0.0110911]
[1770639219469,0.99845261,2039.2,2038.4,0.001]
[1770639219766,2.22636479,2039.3,2038.4,0.001]
[1770639219970,0.99845261,2039.2,2038.4,0.001]
[1770639220385,0.99845261,2039.1,2038.4,0.001]
[1770639221472,0.99845261,2038.9,2038.4,0.001]
[1770639221986,0.99845261,2038.9,2038.1,3.06281436]
[1770639222186,0.99845261,2038.9,2037.9,0.01109752]
[1770639222518,0.99845261,2038.7,2037.9,0.01109752]
[1770639223301,0.99845261,2038.7,2037.9,0.001]
[1770639224705,2.2247844,2038.6,2037.9,0.001]
[1770639224905,0.99845261,2038.5,2037.9,0.001]
[1770639226705,1.22645211,2038.4,2037.9,0.001]
[1770639227013,2.22489291,2038.5,2037.9,0.001]
[1770639228308,0.99776816,2038.4,2037.9,0.001]
[1770639228717,2.22426182,2038.4,2037.9,0.001]
[1770639229499,0.99776816,2038.4,2037.9,0.001]
[1770639229810,0.99776816,2038.7,2037.9,0.001]
[1770639231313,0.99776816,2038.5,2037.9,0.001]
[1770639232986,0.99776816,2038.5,2037.7,0.001]
[1770639233203,0.99776816,2038.3,2037.7,0.001]
[1770639234621,0.99776816,2038.3,2037.9,0.001]
[1770639235314,0.99776816,2038.1,2037.7,0.001]
[1770639235615,2.22425452,2038.4,2037.7,0.001]
[1770639235818,0.99776816,2038.7,2037.7,0.001]
[1770639237217,2.22409995,2038.6,2037.7,0.001]
[1770639239126,0.99776816,2038.6,2037.7,0.001]
[1770639239300,1.22639195,2038.5,2037.7,0.001]
[1770639240326,2.22414519,2038.6,2037.7,0.001]
[1770639240531,1.22631322,2038.7,2037.7,0.99289251]
[1770639240829,2.22408138,2038.7,2037.7,0.99289251]
[1770639241206,2.22416011,2038.5,2037.7,0.001]
[1770639241412,0.99776816,2038.4,2037.7,0.001]
[1770639243511,1.22651228,2038.3,2037.7,0.001]
[1770639243899,0.99776816,2038.2,2037.7,0.001]
[1770639244625,0.99776816,2038.2,2037.2,0.001]
[1770639245549,0.99776816,2038.0,2037.2,0.001]
[1770639246797,0.99776816,2038.0,2037.4,0.001]
[1770639247213,0.99776816,2037.8,2037.2,0.001]
[1770639247509,0.99776816,2037.6,2037.2,0.001]
[1770639247713,2.2244008,2038.1,2037.2,0.001]
[1770639247914,4.65457666,2038.2,2037.2,0.99289251]
[1770639248313,0.99776816,2038.1,2037.2,0.001]
[1770639249226,4.65457666,2038.2,2037.2,0.99289251]
[1770639249439,1.22657666,2038.2,2037.2,0.99289251]
[1770639249734,1.22654138,2038.3,2037.3,28.847316]
[1770639250043,0.002,2038.5,2037.7,0.99189251]
[1770639250328,0.002,2038.5,2037.8,0.99189251]
[1770639251104,0.002,2038.5,2037.6,6.084677]
[1770639251105,1.2283967,2038.5,2037.6,6.084677]
[1770639251329,1.2283967,2038.5,2037.6,4.041743]
[1770639251636,0.002,2038.5,2037.6,4.041743]
[1770639253337,0.002,2038.5,2037.6,5.10715771]
[1770639253511,0.002,2038.5,2037.8,30.99189251]
[1770639253728,0.002,2038.5,2037.8,0.99189251]
[1770639254014,0.002,2038.5,2037.6,0.0735222]
[1770639254216,0.002,2038.5,2037.7,19.865154]
[1770639255828,0.002,2038.5,2037.7,20.76707972]
[1770639256135,0.002,2039.0,2038.0,0.90192572]
[1770639256333,0.002,2039.0,2037.9,0.0735222]
[1770639256334,0.002,2039.0,2038.3,0.90192572]
[1770639256540,0.002,2039.3,2038.2,0.0735222]
[1770639256541,0.002,2039.3,2038.8,0.0735222]
[1770639256728,0.002,2039.3,2038.9,21.977587]
[1770639256925,0.002,2039.3,2038.6,6.009429]
[1770639257126,0.002,2039.3,2038.7,6.136108]
[1770639259055,0.002,2039.3,2038.6,3.429]
[1770639259341,0.98525677,2039.3,2038.6,3.429]
[1770639260246,0.002,2038.8,2038.6,3.429]
[1770639260549,2.21121981,2039.3,2038.6,3.429]
[1770639260550,0.002,2039.0,2038.6,3.429]
[1770639261543,0.002,2039.3,2038.6,4.3443647]
[1770639261742,2.21117496,2039.3,2038.6,3.429]
[1770639261917,0.98325677,2039.2,2038.6,3.429]
[1770639262239,2.20925639,2039.2,2038.6,3.429]
[1770639262544,2.20923625,2039.2,2038.6,3.429]
[1770639262748,2.20924177,2039.2,2038.6,3.429]
[1770639263155,1.22791096,2039.3,2038.6,3.429]
[1770639264050,2.21116773,2039.3,2038.6,3.429]
[1770639264252,0.98325677,2039.2,2038.6,3.429]
[1770639264722,2.20927179,2039.2,2038.6,3.429]
[1770639264923,0.002,2039.3,2038.6,3.429]
[1770639265335,1.22791535,2039.3,2038.6,3.429]
[1770639265749,0.98325677,2039.2,2038.6,3.429]
[1770639265953,0.98325677,2039.2,2038.1,3.428]
[1770639266836,2.20928786,2039.1,2038.1,3.428]
[1770639267352,0.98325677,2039.0,2037.7,3.428]
[1770639267526,0.98325677,2039.0,2037.9,13.744531]
[1770639267858,0.98325677,2039.0,2037.8,0.9153647]
[1770639268164,0.98325677,2039.0,2037.8,2.016821]
[1770639268654,0.98325677,2039.0,2037.7,3.428]
[1770639268828,0.98325677,2038.8,2037.7,3.428]
[1770639269171,0.98325677,2038.8,2037.7,4.3433647]
[1770639269629,0.98325677,2038.8,2037.8,25.348306]
[1770639269831,0.98325677,2038.8,2037.8,20.89871]
[1770639270032,1.22613963,2039.0,2037.9,24.319517]
[1770639270249,1.22613963,2039.0,2037.9,0.9153647]
[1770639270454,1.22795449,2039.3,2038.1,0.9153647]
[1770639270640,0.98325677,2039.2,2038.2,10.983337]
[1770639270957,1.22603109,2039.1,2038.2,10.983337]
[1770639271362,2.20928786,2039.1,2038.2,7.955351]
[1770639271551,2.20928786,2039.1,2038.0,20.9329]
[1770639271862,2.20928786,2039.1,2038.0,18.98864]
[1770639272460,2.20928786,2039.1,2038.4,0.001]
[1770639272661,2.21128786,2039.1,2038.4,0.001]
[1770639274253,0.98325677,2039.0,2038.4,0.001]
[1770639275238,2.20940812,2038.9,2038.4,0.001]
[1770639275471,0.98325677,2038.8,2038.4,0.001]
[1770639277340,1.22627164,2038.7,2038.4,0.001]
[1770639277941,2.20951405,2038.8,2038.4,0.001]
[1770639279679,0.98325677,2038.7,2038.4,0.001]
[1770639279861,0.98325677,2038.7,2038.2,0.001]
[1770639280241,0.98325677,2038.7,2037.7,3.428]
[1770639281456,0.98325677,2038.5,2037.7,3.428]
[1770639282243,1.22609122,2039.0,2038.0,0.9153647]
[1770639282481,1.22807481,2039.1,2038.0,0.9153647]
[1770639283696,0.002,2039.1,2038.0,0.9153647]
[1770639285791,0.002,2039.1,2038.2,0.001]
[1770639285995,0.002,2038.9,2038.2,0.001]
[1770639287270,0.002,2038.9,2038.3,0.93002053]
[1770639287672,0.002,2038.9,2038.2,0.001]
[1770639290598,0.93543455,2038.9,2038.2,0.001]
[1770639292503,0.002,2038.9,2038.2,0.93102053]
[1770639292879,1.22816182,2038.9,2038.2,0.001]
[1770639293199,2.16159637,2038.9,2038.2,0.001]
[1770639294003,0.93343455,2038.8,2038.2,0.001]
[1770639294602,0.93343455,2038.6,2038.2,0.001]
[1770639296586,0.93343455,2038.4,2038.2,0.001]
[1770639297776,0.93343455,2038.4,2038.0,0.001]
[1770639297978,0.93343455,2038.4,2037.4,0.001]
[1770639299074,0.93343455,2038.2,2037.4,0.001]
[1770639299278,0.90843455,2038.2,2037.4,0.001]
[1770639301211,0.93343455,2038.0,2037.4,0.001]
[1770639302515,1.22663264,2038.1,2037.4,0.001]
[1770639302724,0.93343455,2038.0,2037.4,0.001]
[1770639303215,0.93343455,2037.8,2037.4,0.001]
[1770639304025,0.93343455,2037.8,2037.2,0.001]
[1770639304184,0.93343455,2037.8,2037.1,0.001]
[1770639305284,1.22687343,2037.7,2037.1,0.001]
[1770639305709,0.93343455,2037.6,2037.1,0.001]
[1770639307800,1.22699386,2037.5,2037.1,0.001]
[1770639308314,2.16042841,2037.5,2037.1,0.001]
[1770639309511,1.22699386,2037.5,2037.1,0.001]
[1770639309717,1.22687343,2037.7,2037.1,0.001]
[1770639310935,1.22687343,2037.7,2036.8,0.001]
[1770639310936,0.93343455,2037.4,2036.8,0.001]
[1770639311223,2.16030798,2037.7,2036.8,0.93102053]
[1770639311410,2.16030798,2037.7,2037.3,0.001]
[1770639311612,0.93543455,2037.6,2037.3,0.001]
[1770639311810,1.22699386,2037.5,2037.3,0.001]
[1770639311994,2.16042841,2037.5,2037.0,0.001]
[1770639312696,0.93343455,2037.4,2037.0,0.001]
[1770639313130,0.93343455,2037.4,2036.8,0.001]
[1770639313851,0.93343455,2037.2,2036.8,0.001]
[1770639314134,1.22711431,2037.3,2036.8,0.001]
[1770639316213,0.90956403,2037.3,2036.8,0.001]
[1770639318330,1.22717455,2037.2,2036.8,0.001]
[1770639321299,5.8700421,2037.3,2036.8,0.001]
[1770639321499,0.96134389,2037.2,2036.8,0.001]
[1770639322407,4.90869821,2037.3,2036.8,0.001]
[1770639322610,1.22699386,2037.5,2036.8,0.001]
[1770639323727,1.22894348,2037.6,2036.8,0.99381174]
[1770639324203,1.22894348,2037.6,2037.0,0.001]
[1770639324399,1.22894348,2037.6,2037.0,1.301]
[1770639325222,0.002,2037.6,2037.0,1.301]
[1770639325608,0.002,2037.6,2037.0,2.29381174]
[1770639328702,0.002,2037.6,2037.0,1.301]
[1770639330426,0.002,2037.6,2037.0,2.29381174]
[1770639332635,0.002,2037.6,2037.0,1.301]
[1770639333632,0.96334389,2037.6,2037.0,1.301]
[1770639333819,2.18833775,2037.5,2037.0,0.001]
[1770639334528,1.22699386,2037.5,2037.0,0.001]
[1770639336128,5.87131935,2037.6,2037.0,0.001]
[1770639336506,0.002,2037.3,2037.0,0.001]
[1770639336707,0.002,2037.3,2037.0,0.99381174]
[1770639337110,0.002,2037.5,2037.0,0.99381174]
[1770639338038,0.96134389,2037.4,2037.0,0.001]
[1770639338216,0.96134389,2037.4,2036.8,0.001]
[1770639338421,0.96134389,2037.2,2036.5,0.001]
[1770639340237,1.22723479,2037.1,2036.5,0.001]
[1770639340742,5.87028306,2037.2,2036.5,0.99381174]
[1770639340743,1.22720122,2037.2,2036.5,0.99381174]
[1770639342319,1.22899386,2037.5,2036.5,0.99381174]
[1770639343324,1.22899386,2037.5,2036.7,2.29281174]
[1770639343945,0.90202027,2037.4,2036.5,0.97617491]
[1770639344238,1.22711431,2037.3,2036.5,0.97617491]
[1770639346439,0.002,2037.5,2036.5,0.97617491]
[1770639348533,0.002,2037.5,2036.7,0.001]
[1770639348858,0.002,2037.3,2036.7,0.001]
[1770639352160,0.99375857,2037.3,2036.7,0.001]
[1770639354155,1.22717455,2037.2,2036.7,0.001]
[1770639355125,2.21893312,2037.2,2036.7,0.001]
[1770639356256,0.99175857,2037.1,2036.7,0.001]
[1770639356459,0.99175857,2037.1,2036.5,0.001]
[1770639358246,0.99175857,2036.9,2036.5,0.001]
[1770639360148,0.99175857,2036.9,2036.3,0.001]
[1770639360344,2.21917412,2036.8,2036.3,0.001]
[1770639360549,1.22741555,2036.8,2036.3,0.001]
[1770639361375,1.22741555,2036.8,2036.7,0.001]
[1770639361942,2.21917412,2036.8,2036.7,0.001]
[1770639362143,2.21917412,2036.8,2036.3,0.001]
[1770639362971,1.22741555,2036.8,2036.3,0.001]
[1770639364347,0.99175857,2037.0,2036.3,0.001]
[1770639365164,4.91094984,2037.1,2036.3,0.9078349]
[1770639366268,4.91094984,2037.1,2036.3,0.95633899]
[1770639369774,0.002,2037.1,2036.3,0.95633899]
[1770639370475,0.002,2037.1,2036.6,0.9068349]
[1770639373071,0.002,2037.1,2036.5,1.34849932]
[1770639373255,0.002,2037.1,2036.5,1.3]
[1770639373444,0.002,2037.1,2036.6,0.9068349]
[1770639373652,0.002,2037.1,2036.6,0.95533562]
[1770639374070,0.002,2036.9,2036.6,0.95533562]
[1770639374256,0.002,2037.1,2036.6,0.95533562]
[1770639374257,0.002,2037.1,2036.7,0.9068349]
[1770639377985,1.04979859,2037.1,2036.6,0.04850072]
[1770639378152,1.04979859,2037.1,2036.5,1.301]
[1770639378348,1.04979859,2037.1,2036.5,0.001]
[1770639378958,1.22929087,2037.1,2036.5,0.001]
[1770639379275,0.002,2037.1,2036.5,1.1148532]
[1770639380049,0.002,2037.1,2036.7,1.3]
[1770639380269,1.22924067,2037.1,2036.7,1.3]
[1770639380579,0.002,2037.1,2036.7,1.3]
[1770639380778,1.22923645,2037.1,2036.7,1.3]
[1770639380968,0.002,2037.1,2036.7,1.3]
[1770639382678,0.002,2037.1,2036.7,2.36534311]
[1770639383080,0.002,2037.1,2036.7,1.3]
[1770639386959,0.002,2037.1,2036.9,0.001]
[1770639390101,2.27509363,2037.0,2036.9,0.001]
[1770639391056,1.04779859,2036.9,2036.5,0.001]
[1770639392265,1.22729504,2037.0,2036.5,0.001]
[1770639392453,1.04779859,2036.9,2036.5,0.001]
[1770639392657,1.2292684,2037.1,2036.7,1.06534311]
[1770639392882,0.002,2037.1,2036.7,1.06534311]
[1770639393083,1.22924274,2037.1,2036.7,1.06534311]
[1770639393278,1.22924274,2037.1,2036.7,2.36534311]
[1770639393987,0.002,2037.1,2036.7,2.36534311]
[1770639395703,0.002,2037.1,2036.7,1.3]
[1770639400313,0.002,2037.1,2036.9,0.001]
[1770639402580,1.22923479,2037.1,2036.9,0.001]
[1770639407621,1.09474318,2037.0,2036.9,0.001]
[1770639407920,1.09474318,2037.0,2036.7,0.001]
[1770639411441,1.22928444,2037.1,2036.7,0.001]
[1770639412835,1.22924109,2037.1,2036.7,0.001]
[1770639413036,1.22924109,2037.1,2036.9,0.001]
[1770639413530,0.002,2037.1,2036.9,0.001]
[1770639415697,0.002,2037.5,2037.0,8.68952097]
[1770639416119,0.002,2037.5,2037.0,9.78190588]
[1770639416326,0.002,2037.5,2037.2,8.68952097]
[1770639418029,0.002,2037.5,2037.1,1.09238491]
[1770639418325,1.22881322,2037.8,2037.2,9.78190588]
[1770639419027,1.09474318,2037.7,2037.0,13.21190588]
[1770639419212,1.09474318,2037.7,2037.1,1.09238491]
[1770639419412,1.09474318,2037.7,2037.2,1.3]
[1770639420633,2.32164634,2037.7,2037.2,1.3]
[1770639422429,1.09474318,2037.6,2037.2,1.3]
[1770639422617,1.09474318,2037.6,2037.0,3.43]
[1770639422818,2.32173704,2037.5,2037.0,3.43]
[1770639423500,1.09474318,2037.4,2037.0,3.43]
[1770639424404,1.09474318,2037.4,2036.9,0.001]
[1770639424823,2.32185749,2037.3,2036.9,0.001]
[1770639425229,1.22711431,2037.3,2036.9,0.001]
[1770639425433,1.09474318,2037.2,2036.9,0.001]
[1770639428338,2.32195383,2037.2,2036.9,0.001]
[1770639433651,1.09474318,2037.1,2036.9,0.001]
[1770639433850,1.09474318,2037.1,2036.7,0.001]
[1770639435541,1.16027722,2036.9,2036.7,0.001]
[1770639436720,2.38757226,2037.0,2036.7,0.001]
[1770639436921,1.22729504,2037.0,2036.7,0.001]
[1770639437220,1.16027722,2036.9,2036.7,0.001]
[1770639437841,2.38769277,2036.8,2036.7,0.001]
[1770639438356,1.21212892,2036.7,2036.5,0.001]
[1770639439419,1.22741555,2036.8,2036.5,0.001]
[1770639440722,2.43954447,2036.8,2036.5,0.001]
[1770639441544,1.22741555,2036.8,2036.5,0.001]
[1770639442454,1.21212892,2037.1,2036.5,1.20774845]
[1770639442630,1.22716075,2037.3,2036.6,1.20674845]
[1770639442827,2.43928967,2037.3,2036.6,1.20674845]
[1770639444341,1.21212892,2037.2,2036.5,0.001]
[1770639444945,1.21212892,2036.9,2036.5,0.001]
[1770639447061,1.21212892,2036.6,2036.3,0.001]
[1770639447275,8.68952097,2036.3,2035.1,1.87159172]
[1770639447552,1.21212892,2036.0,2035.2,1.22937881]
[1770639447728,1.21212892,2036.2,2035.4,1.20674845]
[1770639448250,1.21212892,2036.2,2035.3,14.246918]
[1770639448549,1.21212892,2036.2,2035.3,2.795754]
[1770639449052,2.43996645,2036.1,2035.3,2.795754]
[1770639450531,1.21212892,2036.0,2035.2,0.001]
[1770639450735,1.21212892,2036.0,2035.6,0.001]
[1770639451039,1.21212892,2035.9,2035.6,0.001]
[1770639451245,2.44014738,2035.8,2035.6,0.001]
[1770639451478,6.12351776,2036.1,2035.6,0.001]
[1770639451651,2.43982608,2036.4,2035.6,1.20774845]
[1770639451951,1.21212892,2036.3,2035.6,0.001]
[1770639452926,1.21212892,2036.2,2035.6,0.001]
[1770639455266,1.22783753,2036.1,2035.6,0.001]
[1770639455757,1.21212892,2036.4,2035.7,1.20674845]
[1770639455937,1.22954465,2036.6,2035.9,1.20674845]
[1770639456357,0.002,2036.6,2035.9,1.20674845]
[1770639456663,0.002,2036.6,2036.0,9.90422564]
[1770639457233,0.002,2036.6,2036.1,3.431]
[1770639457645,1.21412892,2036.6,2036.1,3.431]
[1770639458866,1.21412892,2036.6,2035.9,5.161481]
[1770639459355,0.002,2036.6,2035.9,1.20674845]
[1770639459555,1.22953786,2036.6,2035.9,1.20674845]
[1770639459764,0.002,2036.6,2035.9,1.20674845]
[1770639460146,1.22953963,2036.6,2035.9,1.20674845]
[1770639460351,2.44166855,2036.6,2035.9,6.623981]
[1770639460555,2.44166855,2036.6,2035.9,5.161481]
[1770639462036,1.21212892,2036.5,2035.8,4.731]
[1770639462244,9.90960611,2036.2,2035.8,4.731]
[1770639462551,1.21212892,2036.2,2035.8,4.731]
[1770639462765,1.21212892,2036.2,2035.8,3.431]
[1770639463370,2.43994809,2036.2,2035.8,3.431]
[1770639464381,1.22969668,2036.4,2035.8,3.431]
[1770639465052,2.4418256,2036.4,2035.8,3.431]
[1770639465668,2.4418256,2036.4,2035.6,1.20774845]
[1770639465669,1.15348585,2036.2,2035.6,0.001]
[1770639467677,2.38132338,2036.1,2035.6,0.001]
[1770639467968,1.15348585,2036.0,2035.6,0.001]
[1770639469078,1.15348585,2036.0,2035.5,0.001]
[1770639469295,1.15348585,2036.0,2035.3,0.001]
[1770639469660,1.15348585,2035.8,2035.3,0.001]
[1770639471679,1.15348585,2035.7,2035.3,0.001]
[1770639471885,1.15348585,2035.5,2035.3,0.001]
[1770639472391,1.15348585,2035.5,2034.9,0.001]
[1770639472753,2.38162497,2035.6,2034.9,0.001]
[1770639473286,1.15348585,2035.5,2034.9,0.001]
[1770639473848,2.38171417,2035.5,2034.9,0.001]
[1770639475080,1.15348585,2035.4,2034.9,0.001]
[1770639475578,1.15348585,2035.4,2034.7,0.001]
[1770639476180,1.15348585,2035.2,2034.7,0.001]
[1770639476396,1.22832014,2035.3,2034.7,0.001]
[1770639476689,2.38180599,2035.3,2034.7,0.001]
[1770639478258,0.002,2035.6,2034.7,1.25411947]
[1770639478663,1.13029185,2035.6,2034.7,1.25411947]
[1770639479357,1.13029185,2035.6,2034.7,0.001]
[1770639480281,1.15348585,2035.4,2034.7,0.001]
[1770639480751,1.22819945,2035.5,2034.7,0.001]
[1770639480955,2.3816853,2035.5,2034.7,1.25411947]
[1770639481364,0.002,2035.8,2034.9,1.25311947]
[1770639481562,0.002,2035.8,2035.1,1.25311947]
[1770639481957,1.23002758,2035.8,2035.1,1.25311947]
[1770639482159,2.38351343,2035.8,2035.0,1.3]
[1770639482361,2.38351343,2035.8,2035.0,3.78161803]
[1770639482987,2.38351343,2035.8,2035.0,2.55311947]
[1770639483191,2.38351343,2035.8,2035.0,3.78161923]
[1770639483357,1.15348585,2035.7,2035.0,1.3]
[1770639483762,1.15348585,2035.7,2034.8,3.433]
[1770639484857,1.15348585,2035.5,2034.8,3.433]
[1770639487166,2.38174565,2035.4,2034.7,0.001]
[1770639487365,2.38174565,2035.4,2034.5,0.001]
[1770639487366,1.15348585,2035.1,2034.5,0.001]
[1770639487565,1.15348585,2035.0,2034.1,0.001]
[1770639488371,4.58648585,2034.9,2034.1,0.001]
[1770639488702,1.15348585,2034.4,2033.3,30.0]
[1770639488870,1.15348585,2034.4,2033.9,0.001]
[1770639489273,2.3824098,2034.3,2033.9,0.001]
[1770639489576,1.15348585,2034.2,2033.9,0.001]
[1770639490276,1.15348585,2034.7,2033.9,0.001]
[1770639490481,1.15348585,2034.9,2033.9,1.25411947]
[1770639491365,1.22862197,2034.8,2033.9,1.25411947]
[1770639493005,1.15348585,2034.4,2033.2,1.25311947]
[1770639493299,1.15348585,2034.4,2033.4,4.942979]
[1770639493300,1.30244615,2034.3,2033.4,4.942979]
[1770639493495,1.22889913,2034.4,2033.5,1.25311947]
[1770639494172,1.22883366,2034.5,2033.7,1.25311947]
[1770639494678,2.38231951,2034.5,2033.5,3.669218]
[1770639494880,1.15348585,2034.4,2033.4,2.48258518]
[1770639495079,1.15348585,2034.4,2033.4,2.48258558]
[1770639495281,1.22892395,2034.3,2033.4,1.22944551]
[1770639495494,1.22892395,2034.3,2033.4,2.51935107]
[1770639496299,1.22892395,2034.3,2033.4,1.28990556]
[1770639497801,4.91499533,2034.6,2033.4,1.28990556]
[1770639497802,4.91511253,2034.6,2033.6,29.47725956]
[1770639498107,4.91511253,2034.6,2033.6,1.28990556]
[1770639498309,4.91511253,2034.6,2033.5,1.24826228]
[1770639498514,1.29971875,2034.5,2033.5,1.24826228]
[1770639499806,1.22886354,2034.4,2033.5,2.47766702]
[1770639499989,2.52834072,2034.8,2033.7,1.24826228]
[1770639500171,1.29971875,2034.7,2033.7,1.24826228]
[1770639500802,1.22862197,2034.8,2033.7,1.24826228]
[1770639501005,1.29971875,2034.7,2033.7,1.24826228]
[1770639501204,1.29971875,2034.7,2033.9,1.3]
[1770639501703,1.29971875,2034.9,2034.0,1.22910521]
[1770639502703,1.29971875,2034.9,2033.9,2.52912065]
[1770639502880,1.22850122,2035.0,2034.0,1.24826228]
[1770639503198,1.29971875,2035.0,2034.0,1.24826228]
[1770639503407,1.22842154,2035.2,2034.2,1.24826228]
[1770639503897,2.53008327,2035.3,2034.3,2.47718623]
[1770639504293,2.53008327,2035.3,2034.4,1.24826228]
[1770639505809,2.53008327,2035.3,2034.4,2.47711077]
[1770639506478,2.53008327,2035.3,2034.6,1.3]
[1770639507304,1.29971875,2035.2,2034.6,1.3]
[1770639507674,1.22844086,2035.1,2034.1,1.22903407]
[1770639507874,1.29971875,2035.0,2034.2,3.373266]
[1770639509385,1.29971875,2034.9,2033.9,1.22912075]
[1770639509586,1.29971875,2034.9,2034.0,1.22909915]
[1770639509911,2.52833993,2034.9,2034.0,2.47736143]
[1770639510910,2.52833993,2034.9,2034.0,1.24826228]
[1770639511520,1.29971875,2034.8,2034.2,1.3]
[1770639512009,2.52840111,2034.7,2034.2,1.3]
[1770639512412,2.52840111,2034.7,2033.9,1.22916037]
[1770639513405,2.52840111,2034.7,2033.8,1.22921861]
[1770639513594,1.29971875,2034.6,2033.9,0.001]
[1770639513794,1.30171875,2034.6,2033.9,0.001]
[1770639513991,1.22880314,2034.5,2033.9,0.001]
[1770639515514,2.52852189,2034.5,2033.9,0.001]
[1770639516013,1.22892395,2034.3,2033.9,0.001]
[1770639516404,2.5286427,2034.3,2033.9,0.001]
[1770639516800,2.5286427,2034.3,2033.7,0.001]
[1770639516801,1.22892395,2034.3,2033.7,0.001]
[1770639516999,1.29971875,2034.2,2033.7,0.001]
[1770639517204,1.22892395,2034.3,2033.7,0.001]
[1770639517517,2.52863075,2034.4,2033.7,0.001]
[1770639518211,1.29971875,2034.3,2033.7,0.001]
[1770639520711,1.22898119,2034.3,2033.7,0.001]
[1770639520913,2.52855445,2034.5,2033.7,0.001]
[1770639521212,1.2288357,2034.5,2033.7,1.24926228]